bitfinex/quotes_SOLUSD_20250112
["timestamp","ask_amount","ask_price","bid_price","bid_amount"]
[1736722322431,0.25098,187.29,187.28,8.8776888]
[1736722323549,0.25098,187.31,187.28,8.8776888]
[1736722323733,20.25098,187.31,187.3,8.8776888]
[1736722324280,20.37647,187.31,187.3,8.8776888]
[1736722326368,20.50196,187.31,187.3,8.8776888]
[1736722326558,0.12549,187.26,187.21,14.64590356]
[1736722326762,0.12549,187.26,187.25,8.8776888]
[1736722328981,0.12549,187.26,187.21,10.8502]
[1736722329193,0.12549,187.26,187.25,8.8776888]
[1736722329681,0.50196,187.26,187.25,8.8776888]
[1736722330170,20.50196,187.26,187.25,8.8776888]
[1736722340892,20.25098,187.25,187.2,35.5107552]
[1736722341085,21.0417114,187.25,187.24,8.8776888]
[1736722341589,21.0417114,187.25,187.19,12.99570356]
[1736722341769,21.0417114,187.25,187.24,8.8776888]
[1736722342185,20.25098,187.25,187.24,8.8776888]
[1736722343396,0.37647,187.25,187.24,8.8776888]
[1736722344284,0.25098,187.23,187.18,8.39570356]
[1736722344484,0.12549,187.2,187.17,14.64590356]
[1736722344675,0.12549,187.19,187.17,14.64590356]
[1736722345397,0.12549,187.19,187.17,6.2502]
[1736722345605,0.12549,187.18,187.12,8.39570356]
[1736722345794,0.25098,187.17,187.13,4.6]
[1736722345998,0.37647,187.17,187.16,8.8776888]
[1736722349609,0.37647,187.17,187.1,6.3773]
[1736722349901,0.12549,187.16,187.07,41.97851782]
[1736722350204,0.25098,187.15,187.08,4.6]
[1736722351083,0.12549,187.12,187.06,10.9773]
[1736722351407,0.25098,187.11,187.06,6.3773]
[1736722351583,20.25098,187.11,187.1,8.8776888]
[1736722351980,20.37647,187.11,187.1,8.8776888]
[1736722353211,20.50196,187.11,187.03,1.5383]
[1736722353517,0.12549,187.08,187.03,4.6]
[1736722354222,0.12549,187.07,187.02,41.6824552]
[1736722354395,0.12549,187.07,187.02,46.2824552]
[1736722355291,0.12549,187.09,187.06,8.8776888]
[1736722355477,0.12549,187.07,187.02,41.6824552]
[1736722355678,0.12549,187.06,187.02,41.6824552]
[1736722356812,0.12549,187.08,187.02,41.6824552]
[1736722357002,0.12549,187.07,187.02,41.6824552]
[1736722358110,0.12549,187.07,187.06,8.8776888]
[1736722359394,0.12549,187.06,187.0,4.6]
[1736722359592,0.12549,187.06,187.02,35.5107552]
[1736722359593,0.12549,187.05,187.02,35.5107552]
[1736722361499,0.12549,187.04,187.02,35.5107552]
[1736722361704,0.12549,187.04,187.03,8.8776888]
[1736722363382,0.12549,187.04,186.99,4.6]
[1736722363383,0.25098,187.03,186.99,4.6]
[1736722363588,0.12549,187.02,186.99,4.6]
[1736722364518,0.25098,187.05,186.99,4.6]
[1736722364729,0.37647,187.05,187.04,8.8776888]
[1736722365686,0.25098,187.05,187.04,8.8776888]
[1736722365889,0.7907314,187.07,187.04,8.8776888]
[1736722366109,0.7907314,187.09,187.06,8.8776888]
[1736722366414,0.25098,187.09,187.08,8.8776888]
[1736722366708,20.0,187.09,187.08,8.8776888]
[1736722366904,20.25098,187.09,187.08,8.8776888]
[1736722367211,0.12549,187.09,187.08,8.8776888]
[1736722369703,0.25098,187.09,187.08,8.8776888]
[1736722370217,0.7907314,187.17,187.08,15.1595888]
[1736722370404,0.37647,187.16,187.14,8.8776888]
[1736722370900,0.12549,187.15,187.09,4.6]
[1736722371211,0.9162214,187.15,187.09,4.6]
[1736722371718,20.9162214,187.15,187.09,4.6]
[1736722374239,21.1672014,187.15,187.14,8.8776888]
[1736722375018,21.0417114,187.15,187.14,8.8776888]
[1736722375211,0.25098,187.15,187.14,8.8776888]
[1736722376915,21.6158,187.18,187.14,8.8776888]
[1736722377097,20.0,187.18,187.16,8.8776888]
[1736722377299,0.25098,187.17,187.16,8.8776888]
[1736722377995,0.12549,187.17,187.16,8.8776888]
[1736722378192,9.0031788,187.17,187.1,30.0]
[1736722378397,8.8776888,187.14,187.1,30.0]
[1736722379425,8.8776888,187.13,187.1,30.0]
[1736722380014,8.8776888,187.14,187.1,30.0]
[1736722381227,20.0,187.17,187.1,30.0]
[1736722381430,8.8776888,187.15,187.1,30.0]
[1736722384425,0.12549,187.18,187.1,30.0]
[1736722384812,8.8776888,187.15,187.1,30.0]
[1736722386028,8.8776888,187.14,187.1,30.0]
[1736722386408,8.8776888,187.15,187.1,30.0]
[1736722390012,0.12549,187.18,187.1,30.0]
[1736722390213,8.8776888,187.16,187.1,30.0]
[1736722391047,8.8776888,187.15,187.1,30.0]
[1736722391349,8.8776888,187.16,187.1,30.0]
[1736722395339,8.8776888,187.15,187.1,30.0]
[1736722397028,8.8776888,187.12,187.09,4.6]
[1736722397342,8.8776888,187.11,187.09,4.6]
[1736722397549,2.5266214,187.16,187.04,17.27339236]
[1736722397550,8.8776888,187.1,187.04,8.39570356]
[1736722397723,8.8776888,187.08,187.04,12.99570356]
[1736722398144,8.8776888,187.06,187.04,8.39570356]
[1736722398347,8.8776888,187.06,187.03,12.99570356]
[1736722398550,8.8776888,187.06,187.03,8.39570356]
[1736722398738,8.8776888,187.05,187.03,8.39570356]
[1736722399056,8.8776888,187.04,187.03,8.39570356]
[1736722399242,0.12549,187.03,186.99,52.74]
[1736722399567,8.8776888,187.02,186.99,52.74]
[1736722399720,8.8776888,187.01,186.99,52.74]
[1736722400919,8.8776888,187.0,186.99,52.74]
[1736722401457,8.8776888,187.01,186.99,52.74]
[1736722402253,8.8776888,187.01,186.99,48.14]
[1736722402764,8.8776888,187.0,186.99,48.14]
[1736722406575,8.8776888,187.01,186.99,48.14]
[1736722408083,8.8776888,187.01,186.97,4.6]
[1736722408685,8.8776888,187.01,186.97,34.6]
[1736722409075,8.8776888,187.01,186.97,4.6]
[1736722409675,8.8776888,187.01,186.95,30.0]
[1736722409862,8.8776888,187.0,186.97,4.6]
[1736722410185,8.8776888,187.01,186.97,4.6]
[1736722411272,0.12549,187.0,186.97,4.6]
[1736722411593,8.8776888,186.99,186.97,4.6]
[1736722416365,8.8776888,187.0,186.97,4.6]
[1736722417093,0.12549,186.99,186.97,4.6]
[1736722420024,0.12549,186.99,186.93,4.6]
[1736722420025,0.25098,186.97,186.93,4.6]
[1736722420342,8.8776888,186.96,186.93,4.6]
[1736722422128,8.8776888,186.96,186.92,4.6]
[1736722422326,8.8776888,186.95,186.92,4.6]
[1736722427956,8.8776888,186.96,186.92,4.6]
[1736722430315,0.7907314,187.0,186.92,4.6]
[1736722430521,8.8776888,186.97,186.92,4.6]
[1736722431549,8.8776888,186.97,186.93,30.0]
[1736722431770,8.8776888,186.98,186.93,30.0]
[1736722434071,8.8776888,186.97,186.93,30.0]
[1736722439162,37.0905552,187.02,186.93,30.0]
[1736722439352,8.8776888,186.99,186.93,30.0]
[1736722439545,8.8776888,186.99,186.96,30.0]
[1736722439755,8.8776888,187.0,186.96,30.0]
[1736722440763,8.8776888,187.01,186.96,30.0]
[1736722447069,0.12549,187.04,186.96,30.0]
[1736722447367,8.8776888,187.02,186.96,30.0]
[1736722447541,8.8776888,187.02,186.97,4.6]
[1736722448571,8.8776888,187.01,186.97,4.6]
[1736722452275,8.8776888,187.0,186.97,4.6]
[1736722452774,8.8776888,187.01,186.97,4.6]
[1736722453368,8.8776888,186.99,186.95,8.39570356]
[1736722453559,8.8776888,186.98,186.95,12.99570356]
[1736722453745,8.8776888,186.97,186.95,12.99570356]
[1736722454075,8.8776888,186.97,186.95,4.6]
[1736722454377,8.8776888,186.97,186.93,30.0]
[1736722454581,8.8776888,186.97,186.95,4.6]
[1736722454883,8.8776888,186.98,186.95,4.6]
[1736722458780,9.0031788,186.99,186.95,4.6]
[1736722459086,0.12549,186.99,186.95,4.6]
[1736722459267,9.0031788,186.99,186.95,4.6]
[1736722462890,9.0031788,186.99,186.93,30.0]
[1736722463092,9.0031788,186.99,186.94,4.6]
[1736722468087,9.0031788,186.99,186.93,30.0]
[1736722468392,9.0031788,186.99,186.95,4.6]
[1736722475599,8.8776888,186.99,186.95,34.6]
[1736722475894,8.8776888,187.01,186.97,30.0]
[1736722476099,8.8776888,187.03,187.0,30.0]
[1736722476399,10.5118888,187.04,187.0,30.0]
[1736722478404,8.8776888,187.03,186.98,38.39570356]
[1736722478815,1.6342,187.04,186.98,38.39570356]
[1736722478816,8.8776888,187.02,186.98,38.39570356]
[1736722479311,8.8776888,187.02,186.98,30.0]
[1736722479611,8.8776888,187.03,186.98,30.0]
[1736722482717,1.6342,187.04,187.0,30.0]
[1736722482919,8.8776888,187.03,187.0,30.0]
[1736722486514,10.5118888,187.04,187.0,30.0]
[1736722487027,8.8776888,187.03,186.98,30.0]
[1736722487400,8.8776888,187.03,187.0,30.0]
[1736722493457,1.6342,187.04,187.0,30.0]
[1736722493634,10.5118888,187.04,187.0,30.0]
[1736722501870,8.8776888,187.08,187.02,30.0]
[1736722502039,10.4857888,187.09,187.05,30.0]
[1736722502370,10.4857888,187.09,187.06,4.6]
[1736722503971,8.8776888,187.08,187.06,4.6]
[1736722504857,8.8776888,187.07,187.06,4.6]
[1736722505167,0.12549,187.06,186.99,172.79570356]
[1736722505469,8.8776888,187.05,187.0,4.6]
[1736722507576,8.8776888,187.04,187.0,4.6]
[1736722509047,0.12549,187.07,187.0,4.6]
[1736722509385,13.3607,187.12,187.06,30.0]
[1736722509679,8.8776888,187.1,187.06,30.0]
[1736722510068,20.0,187.12,187.06,30.0]
[1736722510277,1.5752,187.15,187.08,30.0]
[1736722510453,8.8776888,187.14,187.08,30.0]
[1736722510849,1.5752,187.15,187.1,30.0]
[1736722511051,8.8776888,187.15,187.11,4.6]
[1736722511552,8.8776888,187.16,187.11,4.6]
[1736722514658,8.8776888,187.16,187.12,30.0]
[1736722515557,13.3564,187.18,187.12,30.0]
[1736722515759,8.8776888,187.16,187.12,30.0]
[1736722516184,13.3564,187.18,187.12,30.0]
[1736722516384,8.8776888,187.16,187.12,30.0]
[1736722516690,13.3564,187.18,187.12,30.0]
[1736722516877,8.8776888,187.16,187.12,30.0]
[1736722521184,8.8776888,187.17,187.12,30.0]
[1736722521377,8.8776888,187.16,187.12,30.0]
[1736722525690,13.3564,187.18,187.12,30.0]
[1736722525896,8.8776888,187.17,187.12,30.0]
[1736722526701,1.5752,187.19,187.16,30.0]
[1736722526906,8.8776888,187.19,187.16,30.0]
[1736722528305,1.5433,187.23,187.18,30.0]
[1736722528306,8.8776888,187.21,187.18,30.0]
[1736722529479,8.8776888,187.21,187.14,9.67881204]
[1736722529480,8.8776888,187.19,187.14,30.0]
[1736722529906,0.12549,187.22,187.16,30.0]
[1736722530080,8.8776888,187.19,187.16,30.0]
[1736722531400,8.8776888,187.18,187.14,30.0]
[1736722532410,8.8776888,187.18,187.16,30.0]
[1736722532587,8.8776888,187.19,187.16,30.0]
[1736722540734,8.8776888,187.19,187.14,30.0]
[1736722540926,8.8776888,187.19,187.16,30.0]
[1736722541636,8.8776888,187.18,187.14,30.0]
[1736722541809,8.8776888,187.15,187.11,4.6]
[1736722542012,8.8776888,187.14,187.11,4.6]
[1736722542723,8.8776888,187.12,187.1,4.6]
[1736722544344,8.8776888,187.11,187.06,30.0]
[1736722544518,8.8776888,187.08,187.06,4.6]
[1736722544718,8.8776888,187.08,187.05,4.6]
[1736722545547,0.9162214,187.13,187.05,4.6]
[1736722545548,8.8776888,187.07,187.05,4.6]
[1736722546109,8.8776888,187.06,187.05,4.6]
[1736722546314,8.8776888,187.06,187.04,52.72]
[1736722546514,8.8776888,187.05,187.04,52.72]
[1736722547330,9.0031788,187.05,187.04,52.72]
[1736722547533,9.0031788,187.05,187.04,4.6]
[1736722548228,0.37647,187.04,186.96,134.4]
[1736722548533,8.8776888,187.0,186.95,30.0]
[1736722548719,8.8776888,187.0,186.97,4.6]
[1736722550422,8.8776888,186.99,186.97,4.6]
[1736722550628,8.8776888,186.98,186.95,4.6]
[1736722550843,8.8776888,186.97,186.95,4.6]
[1736722551049,8.8776888,186.98,186.95,4.6]
[1736722551253,8.8776888,186.98,186.93,30.0]
[1736722551436,8.8776888,186.98,186.94,4.6]
[1736722551966,8.8776888,186.97,186.94,4.6]
[1736722553063,8.8776888,186.98,186.94,4.6]
[1736722555171,8.8776888,186.98,186.89,6.2139]
[1736722555172,8.8776888,186.96,186.89,30.0]
[1736722555338,8.8776888,186.91,186.87,78.14]
[1736722555664,8.8776888,186.9,186.88,4.6]
[1736722557172,8.8776888,186.9,186.87,82.74]
[1736722557662,8.8776888,186.9,186.87,52.74]
[1736722558039,8.8776888,186.9,186.87,48.14]
[1736722558239,8.8776888,186.89,186.87,48.14]
[1736722560359,8.8776888,186.9,186.87,48.14]
[1736722561068,8.8776888,186.91,186.87,48.14]
[1736722561958,8.8776888,186.9,186.87,48.14]
[1736722565955,8.8776888,186.92,186.87,48.14]
[1736722566358,1.5787,186.94,186.88,30.0]
[1736722566551,8.8776888,186.95,186.92,30.0]
[1736722566748,8.8776888,186.98,186.92,30.0]
[1736722567161,8.8776888,186.97,186.92,30.0]
[1736722567363,8.8776888,186.96,186.92,30.0]
[1736722572770,8.8776888,186.97,186.92,30.0]
[1736722579274,1.6653,186.99,186.92,30.0]
[1736722579475,8.8776888,186.97,186.92,30.0]
[1736722585713,8.8776888,186.93,186.9,4.6]
[1736722586227,8.8776888,186.92,186.9,4.6]
[1736722586723,8.8776888,186.91,186.88,30.0]
[1736722587398,8.8776888,186.91,186.87,4.6]
[1736722587594,8.8776888,186.9,186.86,30.0]
[1736722587795,8.8776888,186.9,186.87,4.6]
[1736722588729,1.5202,186.92,186.87,4.6]
[1736722588730,8.8776888,186.89,186.87,4.6]
[1736722589918,8.8776888,186.89,186.83,30.0]
[1736722590298,8.8776888,186.89,186.84,4.6]
[1736722591298,8.8776888,186.88,186.84,4.6]
[1736722591689,8.8776888,186.87,186.83,30.0]
[1736722591889,0.12549,186.91,186.83,30.0]
[1736722592128,8.8776888,186.89,186.86,30.0]
[1736722593309,8.8776888,186.91,186.88,30.0]
[1736722593695,8.8776888,186.92,186.88,30.0]
[1736722595413,8.8776888,186.91,186.88,30.0]
[1736722596302,0.37647,186.95,186.88,30.0]
[1736722596623,8.8776888,186.92,186.88,30.0]
[1736722597429,0.37647,186.95,186.88,30.0]
[1736722597593,8.8776888,186.91,186.88,30.0]
[1736722598795,8.8776888,186.92,186.88,30.0]
[1736722599414,0.12549,186.95,186.88,30.0]
[1736722599624,8.8776888,186.93,186.88,30.0]
[1736722599818,8.8776888,186.92,186.88,30.0]
[1736722601024,8.8776888,186.94,186.9,30.0]
[1736722603430,8.8776888,186.93,186.9,30.0]
[1736722604611,8.8776888,186.93,186.88,30.0]
[1736722605721,8.8776888,186.9,186.88,4.6]
[1736722607328,8.8776888,186.89,186.88,4.6]
[1736722612243,8.8776888,186.89,186.86,4.6]
[1736722614740,8.8776888,186.89,186.84,30.0]
[1736722615043,8.8776888,186.89,186.85,4.6]
[1736722615657,10.5407888,186.89,186.84,30.0]
[1736722615849,8.8776888,186.88,186.84,4.6]
[1736722616350,8.8776888,186.88,186.84,34.6]
[1736722616851,10.5407888,186.89,186.84,34.6]
[1736722619943,8.8776888,186.88,186.84,34.6]
[1736722621527,10.5407888,186.89,186.84,34.6]
[1736722624850,8.8776888,186.91,186.87,30.0]
[1736722627158,8.8776888,186.92,186.87,30.0]
[1736722627333,8.8776888,186.93,186.87,30.0]
[1736722628030,1.6408,186.99,186.92,30.0]
[1736722628230,8.8776888,186.95,186.92,30.0]
[1736722628458,1.6408,186.99,186.92,30.0]
[1736722628641,8.8776888,186.96,186.92,30.0]
[1736722630747,1.6408,186.99,186.92,30.0]
[1736722630951,8.8776888,186.96,186.92,30.0]
[1736722631446,8.8776888,186.95,186.92,30.0]
[1736722637963,8.8776888,186.93,186.9,4.6]
[1736722639774,8.8776888,186.93,186.88,30.0]
[1736722639975,8.8776888,186.93,186.89,4.6]
[1736722645975,8.8776888,186.92,186.88,30.0]
[1736722646187,8.8776888,186.92,186.88,34.6]
[1736722646653,8.8776888,186.93,186.88,34.6]
[1736722646860,8.8776888,186.93,186.89,4.6]
[1736722647262,8.8776888,186.92,186.89,4.6]
[1736722647657,8.8776888,186.92,186.88,30.0]
[1736722647953,8.8776888,186.92,186.88,34.6]
[1736722648155,8.8776888,186.93,186.88,34.6]
[1736722648475,20.0,186.95,186.88,34.6]
[1736722648664,8.8776888,186.93,186.88,34.6]
[1736722656197,8.8776888,186.97,186.92,30.0]
[1736722657572,0.7907314,187.01,186.96,30.0]
[1736722657764,0.7907314,187.01,186.9,5.0]
[1736722657765,8.8776888,187.01,186.98,30.0]
[1736722657962,0.7907314,187.04,186.96,30.0]
[1736722658188,8.8776888,187.01,186.96,30.0]
[1736722659895,8.8776888,187.0,186.96,30.0]
[1736722665283,8.8776888,187.01,186.96,30.0]
[1736722673698,8.8776888,187.02,186.96,30.0]
[1736722675396,8.3776888,187.02,186.96,30.0]
[1736722681720,8.8776888,187.01,186.96,30.0]
[1736722687336,8.8776888,187.02,186.96,30.0]
[1736722688344,0.12549,187.03,186.96,30.0]
[1736722688637,9.0031788,187.03,186.96,30.0]
[1736722688836,8.8776888,187.02,186.96,30.0]
[1736722696218,1.72949,186.99,186.92,38.39570356]
[1736722696441,8.8776888,186.98,186.92,38.39570356]
[1736722696663,8.8776888,186.98,186.92,42.99570356]
[1736722697149,8.8776888,186.96,186.92,8.39570356]
[1736722697349,8.8776888,186.95,186.91,4.6]
[1736722698448,8.8776888,186.94,186.91,4.6]
[1736722698829,8.8776888,186.93,186.91,4.6]
[1736722699244,8.8776888,186.93,186.89,4.6]
[1736722703460,8.8776888,186.93,186.88,30.0]
[1736722703668,8.8776888,186.93,186.89,4.6]
[1736722704764,8.8776888,186.94,186.89,4.6]
[1736722715398,8.8776888,186.93,186.89,4.6]
[1736722718393,8.8776888,186.92,186.89,4.6]
[1736722718896,8.8776888,186.93,186.89,4.6]
[1736722723000,8.8776888,186.92,186.86,38.39570356]
[1736722723301,8.8776888,186.9,186.86,12.99570356]
[1736722723690,8.8776888,186.9,186.86,4.6]
[1736722723996,8.8776888,186.9,186.84,30.0]
[1736722724197,8.8776888,186.9,186.85,4.6]
[1736722725713,8.8776888,186.9,186.86,30.0]
[1736722725893,8.8776888,186.91,186.86,30.0]
[1736722730003,8.8776888,186.91,186.85,4.6]
[1736722730210,8.8776888,186.9,186.85,4.6]
[1736722730416,8.8776888,186.89,186.85,4.6]
[1736722730625,8.8776888,186.88,186.85,4.6]
[1736722731419,8.8776888,186.88,186.83,34.6]
[1736722731716,8.8776888,186.88,186.83,4.6]
[1736722731916,8.8776888,186.86,186.83,4.6]
[1736722732438,8.8776888,186.86,186.79,47.27339236]
[1736722732439,8.8776888,186.86,186.81,4.6]
[1736722733023,8.8776888,186.87,186.81,4.6]
[1736722734917,8.8776888,186.86,186.81,4.6]
[1736722736403,8.8776888,186.85,186.81,4.6]
[1736722736600,0.37647,186.85,186.76,44.58040356]
[1736722736820,8.8776888,186.82,186.76,42.99570356]
[1736722737019,0.7907314,186.85,186.78,30.0]
[1736722737225,8.8776888,186.84,186.78,30.0]
[1736722738408,8.8776888,186.82,186.78,30.0]
[1736722739129,0.12549,186.84,186.78,30.0]
[1736722739330,9.0031788,186.84,186.78,30.0]
[1736722741230,9.0031788,186.84,186.77,4.6]
[1736722741432,0.7907314,186.83,186.77,4.6]
[1736722741834,9.0031788,186.84,186.77,4.6]
[1736722742222,0.12549,186.84,186.77,4.6]
[1736722742421,2.3065314,186.87,186.8,30.0]
[1736722742728,1.5158,186.87,186.82,30.0]
[1736722743646,1.5904,186.92,186.86,30.0]
[1736722743939,8.8776888,186.91,186.86,30.0]
[1736722744116,8.8776888,186.91,186.87,4.6]
[1736722744642,10.4680888,186.92,186.87,4.6]
[1736722746241,8.8776888,186.91,186.87,4.6]
[1736722749034,8.8776888,186.89,186.86,4.6]
[1736722749240,0.7907314,186.88,186.86,4.6]
[1736722749424,0.25098,186.91,186.86,4.6]
[1736722749425,8.8776888,186.87,186.86,4.6]
[1736722751051,8.8776888,186.87,186.78,44.49540356]
[1736722751223,8.8776888,186.85,186.79,4.6]
[1736722755251,0.12549,186.85,186.79,4.6]
[1736722755545,9.0031788,186.85,186.79,4.6]
[1736722755952,9.0031788,186.86,186.79,4.6]
[1736722756839,9.0031788,186.86,186.78,44.9773888]
[1736722757040,9.0031788,186.86,186.79,4.6]
[1736722759354,9.0031788,186.86,186.79,13.4776888]
[1736722760427,8.8776888,186.86,186.79,13.4776888]
[1736722760631,8.8776888,186.88,186.82,30.0]
[1736722760938,0.7907314,186.89,186.82,30.0]
[1736722761136,8.8776888,186.91,186.85,30.0]
[1736722763760,1.5904,186.92,186.85,38.8776888]
[1736722764066,10.4680888,186.92,186.85,38.8776888]
[1736722764770,0.12549,186.95,186.88,30.0]
[1736722764771,0.7907314,186.95,186.88,30.0]
[1736722765071,8.8776888,186.94,186.88,30.0]
[1736722765274,8.8776888,186.94,186.89,4.6]
[1736722769574,29.0031788,186.95,186.89,4.6]
[1736722770084,0.7907314,186.96,186.9,30.0]
[1736722770276,1.6528,186.97,186.9,38.8776888]
[1736722770481,8.8776888,186.96,186.9,38.8776888]
[1736722771084,0.12549,186.96,186.91,8.8776888]
[1736722771377,0.12549,186.96,186.9,38.8776888]
[1736722771549,10.5304888,186.97,186.92,30.0]
[1736722772678,0.7907314,187.01,186.94,30.0]
[1736722772876,8.8776888,186.99,186.94,30.0]
[1736722773756,0.9162214,187.01,186.94,30.0]
[1736722773757,0.12549,187.01,186.94,30.0]
[1736722773966,8.8776888,187.0,186.94,30.0]
[1736722774356,1.5615,187.02,186.98,30.0]
[1736722774681,10.4391888,187.02,186.98,30.0]
[1736722775267,1.5615,187.02,186.98,30.0]
[1736722776695,8.8776888,187.03,186.98,30.0]
[1736722778977,8.8776888,187.03,186.99,4.6]
[1736722779907,8.8776888,187.05,187.0,30.0]
[1736722780085,20.25098,187.06,187.0,30.0]
[1736722780293,8.8776888,187.05,187.0,30.0]
[1736722781906,20.25098,187.06,187.0,30.0]
[1736722781907,0.12549,187.06,187.0,30.0]
[1736722782113,9.0031788,187.06,187.0,30.0]
[1736722784923,1.5765,187.07,187.03,30.0]
[1736722785086,8.8776888,187.06,187.03,30.0]
[1736722785792,1.5765,187.07,187.03,30.0]
[1736722785992,10.4541888,187.07,187.03,30.0]
[1736722789033,0.12549,187.1,187.03,30.0]
[1736722789342,8.8776888,187.09,187.03,30.0]
[1736722790536,8.8776888,187.1,187.05,30.0]
[1736722791198,1.5901,187.12,187.07,30.0]
[1736722791506,30.4677888,187.12,187.07,30.0]
[1736722792228,30.4677888,187.12,187.09,30.0]
[1736722793327,8.8776888,187.12,187.09,30.0]
[1736722794045,8.8776888,187.13,187.09,30.0]
[1736722794331,8.8776888,187.13,187.09,34.6]
[1736722796030,0.12549,187.14,187.09,34.6]
[1736722796031,8.8776888,187.12,187.09,34.6]
[1736722800439,1.5901,187.16,187.11,30.0]
[1736722800741,3.71680666,187.21,187.11,38.8776888]
[1736722800947,0.7907314,187.2,187.13,38.8776888]
[1736722801236,8.8776888,187.2,187.15,30.0]
[1736722801643,8.8776888,187.2,187.13,8.8776888]
[1736722801644,8.8776888,187.18,187.13,30.0]
[1736722801810,8.8776888,187.16,187.09,34.6]
[1736722802010,8.8776888,187.13,187.09,30.0]
[1736722802251,1.5315,187.16,187.11,30.0]
[1736722802553,0.7907314,187.19,187.08,4.6]
[1736722802554,0.7907314,187.19,187.12,30.0]
[1736722802737,0.12549,187.18,187.1,30.0]
[1736722802933,0.7907314,187.2,187.12,38.8776888]
[1736722803154,14.886,187.21,187.15,30.0]
[1736722803355,8.8776888,187.18,187.12,30.0]
[1736722803564,0.7907314,187.2,187.12,30.0]
[1736722803565,8.8776888,187.17,187.12,30.0]
[1736722803773,10.4091888,187.21,187.15,30.0]
[1736722804053,10.4091888,187.21,187.17,30.0]
[1736722804429,8.8776888,187.2,187.15,30.0]
[1736722804756,8.8776888,187.18,187.13,134.4]
[1736722804926,8.8776888,187.15,187.09,30.0]
[1736722805258,0.12549,187.14,187.09,34.6]
[1736722805635,8.8776888,187.13,187.09,4.6]
[1736722805955,0.12549,187.12,187.09,4.6]
[1736722806149,8.8776888,187.13,187.09,4.6]
[1736722806325,0.25098,187.15,187.09,4.6]
[1736722806525,9.1286688,187.15,187.09,4.6]
[1736722806730,8.8776888,187.15,187.09,34.6]
[1736722807032,0.12549,187.12,187.07,30.0]
[1736722807353,0.12549,187.12,187.04,136.0331]
[1736722807354,8.8776888,187.09,187.05,30.0]
[1736722807528,9.0031788,187.11,187.05,30.0]
[1736722807731,0.12549,187.11,187.05,30.0]
[1736722808146,8.8776888,187.1,187.05,30.0]
[1736722808530,8.8776888,187.1,187.04,134.4]
[1736722808738,8.8776888,187.09,187.04,134.4]
[1736722809146,0.7907314,187.1,187.05,30.0]
[1736722809147,8.8776888,187.1,187.05,30.0]
[1736722809452,1.5182,187.13,187.07,30.0]
[1736722809655,8.8776888,187.15,187.09,30.0]
[1736722809840,8.8776888,187.16,187.09,38.8776888]
[1736722810156,0.7907314,187.17,187.11,30.0]
[1736722810333,8.8776888,187.2,187.15,30.0]
[1736722810538,8.8776888,187.21,187.15,34.6]
[1736722810969,8.8776888,187.22,187.15,43.4776888]
[1736722811354,0.12549,187.21,187.15,43.4776888]
[1736722811658,9.0031788,187.21,187.15,34.6]
[1736722812044,9.0031788,187.19,187.15,4.6]
[1736722812245,0.12549,187.16,187.15,4.6]
[1736722812444,9.1286688,187.16,187.15,4.6]
[1736722813232,0.12549,187.14,187.09,30.0]
[1736722813568,0.12549,187.14,187.09,34.6]
[1736722813973,13.90029046,187.16,187.11,30.0]
[1736722814253,13.90029046,187.19,187.13,30.0]
[1736722814562,0.25098,187.18,187.13,30.0]
[1736722814743,13.90029046,187.19,187.13,30.0]
[1736722814930,33.90029046,187.2,187.14,30.0]
[1736722815439,0.25098,187.19,187.14,30.0]
[1736722816053,13.90029046,187.2,187.14,30.0]